fUST/lending_fUST_20250725
["ID","MTS","AMOUNT","RATE_DAILY","PERIOD"]
[374699992,1753419043021,-460.0,0.00017252,2]
[374699994,1753419043030,-460.0,0.00017252,2]
[374699996,1753419043040,-408.07859827,0.00017252,2]
[374699998,1753419043050,-367.76053293,0.00017252,2]
[374700000,1753419043059,-1668.33,0.00017252,2]
[374700002,1753419043069,-460.0,0.00017252,2]
[374700004,1753419043080,-460.0,0.00017252,2]
[374700006,1753419043090,-460.0,0.00017252,2]
[374700008,1753419043100,-1140.5,0.00017252,2]
[374700010,1753419043109,-460.0,0.00017252,2]
[374700013,1753419043118,-190.3,0.00017252,2]
[374700016,1753419043128,-460.0,0.00017252,2]
[374700019,1753419043138,-520.54,0.00017252,2]
[374700022,1753419043148,-460.0,0.00017259,2]
[374700024,1753419043157,-518.22,0.00017259,2]
[374700027,1753419043167,-230.56,0.00017259,2]
[374700029,1753419043176,-460.0,0.00017259,2]
[374700031,1753419043186,-348.62,0.00017259,2]
[374700033,1753419043195,-373.71948405,0.00017259,2]
[374700035,1753419043207,-460.0,0.0001726,2]
[374700037,1753419043216,-508.88953556,0.0001726,2]
[374700039,1753419043227,-460.0,0.0001726,2]
[374700042,1753419043237,-19667.64960311,0.000173,2]
[374700044,1753419043247,-186.13,0.00017356,2]
[374700046,1753419043258,-460.0,0.00017361,2]
[374700048,1753419043269,-500.0,0.00017361,2]
[374700050,1753419043280,-460.0,0.00017361,2]
[374700052,1753419043290,-460.0,0.00017361,2]
[374700054,1753419043300,-460.0,0.00017361,2]
[374700055,1753419043310,-460.0,0.00017361,2]
[374700057,1753419043321,-460.0,0.00017418,2]
[374700059,1753419043331,-460.0,0.00017418,2]
[374700060,1753419043341,-458.34,0.00017418,2]
[374700061,1753419043351,-593.34,0.00017418,2]
[374700062,1753419043362,-1173.27,0.00017418,2]
[374700063,1753419043373,-438.34146061,0.00017422,2]
[374700064,1753419043383,-1256.39,0.00017422,2]
[374700065,1753419043394,-460.0,0.00017422,2]
[374700066,1753419043403,-460.0,0.00017422,2]
[374700067,1753419043414,-460.0,0.00017422,2]
[374700068,1753419043424,-460.0,0.00017422,2]
[374700069,1753419043434,-2176.29,0.00017422,2]
[374700070,1753419043447,-1047.21,0.00017422,2]
[374700071,1753419043457,-873.75,0.00017422,2]
[374700073,1753419043467,-460.0,0.00017422,2]
[374700075,1753419043479,-977.93,0.00017422,2]
[374700077,1753419043489,-503.73566674,0.00017422,2]
[374700079,1753419043500,-551.48059643,0.00017422,2]
[374700080,1753419043510,-460.0,0.00017422,2]
[374700081,1753419043523,-460.0,0.00017422,2]
[374700083,1753419043534,-460.0,0.00017422,2]
[374700085,1753419043546,-377.07,0.00017424,2]
[374700087,1753419043556,-478.63288055,0.00017424,2]
[374700089,1753419043566,-707.89,0.00017424,2]
[374700091,1753419043578,-467.63122922,0.00017424,2]
[374700093,1753419043588,-343.85,0.00017424,2]
[374700094,1753419043597,-460.0,0.00017424,2]
[374700096,1753419043607,-460.0,0.00017425,2]
[374700098,1753419043617,-460.0,0.00017425,2]
[374700099,1753419043627,-486.46,0.00017425,2]
[374700100,1753419043638,-460.0,0.00017425,2]
[374700102,1753419043648,-460.0,0.00017425,2]
[374700104,1753419043658,-460.0,0.00017425,2]
[374700106,1753419043668,-460.0,0.00017427,2]
[374700108,1753419043678,-460.0,0.00017427,2]
[374700110,1753419043688,-460.0,0.00017427,2]
[374700111,1753419043698,-549.35,0.00017427,2]
[374700112,1753419043708,-477.43,0.00017427,2]
[374700113,1753419043718,-539.26,0.00017427,2]
[374700114,1753419043728,-160.64,0.00017427,2]
[374700115,1753419043739,-460.0,0.00017427,2]
[374700116,1753419043751,-3233.96,0.00017427,2]
[374700117,1753419043760,-1176.72,0.00017427,2]
[374700118,1753419043773,-460.0,0.00017427,2]
[374700119,1753419043783,-460.0,0.00017427,2]
[374700120,1753419043793,-910.0,0.00017427,2]
[374700121,1753419043803,-1246.53,0.00017446,2]
[374700122,1753419043812,-824.42,0.00017446,2]
[374700123,1753419043823,-1706.44,0.00017446,2]
[374700124,1753419043833,-460.0,0.00017446,2]
[374700125,1753419043844,-460.0,0.00017446,2]
[374700126,1753419043853,-477.56,0.00017446,2]
[374700127,1753419043863,-580.03,0.00017446,2]
[374700128,1753419043874,-500.0,0.00017473,2]
[374700129,1753419043884,-166.31452882,0.00017473,2]
[374700130,1753419043893,-460.0,0.00017526,2]
[374700131,1753419043903,-408.84163523,0.00017526,2]
[374700132,1753419043913,-460.0,0.00017526,2]
[374700133,1753419043922,-460.0,0.00017526,2]
[374700134,1753419043932,-460.0,0.00017526,2]
[374700135,1753419043942,-460.0,0.00017526,2]
[374700136,1753419043952,-460.0,0.00017526,2]
[374700137,1753419043962,-460.0,0.00017526,2]
[374700138,1753419043972,-460.0,0.00017526,2]
[374700139,1753419043982,-460.0,0.00017526,2]
[374700140,1753419043993,-460.0,0.00017526,2]
[374700141,1753419044003,-460.0,0.00017526,2]
[374700142,1753419044012,-460.0,0.00017526,2]
[374700143,1753419044026,-460.0,0.00017526,2]
[374700144,1753419044035,-460.0,0.00017526,2]
[374700145,1753419044045,-460.0,0.00017526,2]
[374700146,1753419044055,-466.05,0.00017526,2]
[374700147,1753419044065,-460.0,0.00017526,2]
[374700148,1753419044075,-460.0,0.00017526,2]
[374700149,1753419044084,-460.0,0.00017526,2]
[374700150,1753419044094,-1668.33,0.00017526,2]
[374700151,1753419044104,-460.0,0.00017526,2]
[374700152,1753419044114,-460.0,0.00017526,2]
[374700153,1753419044124,-460.0,0.00017526,2]
[374700154,1753419044134,-1140.5,0.00017526,2]
[374700155,1753419044143,-520.54,0.00017526,2]
[374700156,1753419044153,-460.0,0.00017533,2]
[374700157,1753419044163,-518.22,0.00017533,2]
[374700158,1753419044172,-535.45,0.00017534,2]
[374700159,1753419044182,-5542.56428394,0.0001759,2]
[374700160,1753419044192,-460.0,0.00017635,2]
[374700161,1753419044202,-460.0,0.00017635,2]
[374700162,1753419044212,-460.0,0.00017692,2]
[374700163,1753419044222,-1173.27,0.00017692,2]
[374700164,1753419044232,-1256.39,0.00017696,2]
[374700165,1753419044242,-460.0,0.00017696,2]
[374700166,1753419044252,-460.0,0.00017696,2]
[374700167,1753419044262,-2176.29,0.00017696,2]
[374700168,1753419044273,-1047.21,0.00017696,2]
[374700169,1753419044283,-873.75,0.00017696,2]
[374700170,1753419044293,-460.0,0.00017696,2]
[374700171,1753419044302,-977.93,0.00017696,2]
[374700172,1753419044313,-460.0,0.00017696,2]
[374700173,1753419044322,-460.0,0.00017696,2]
[374700174,1753419044332,-460.0,0.00017696,2]
[374700175,1753419044342,-707.89,0.00017698,2]
[374700176,1753419044353,-460.0,0.00017698,2]
[374700177,1753419044363,-460.0,0.00017699,2]
[374700178,1753419044373,-460.0,0.00017699,2]
[374700179,1753419044383,-486.46,0.00017699,2]
[374700180,1753419044393,-460.0,0.00017699,2]
[374700181,1753419044403,-460.0,0.00017699,2]
[374700182,1753419044413,-460.0,0.00017699,2]
[374700183,1753419044423,-48289.48283706,0.000177,2]
[374700184,1753419044433,-460.0,0.00017701,2]
[374700185,1753419044443,-460.0,0.00017701,2]
[374700186,1753419044452,-460.0,0.00017701,2]
[374700187,1753419044462,-477.43,0.00017701,2]
[374700188,1753419044473,-539.26,0.00017701,2]
[374700189,1753419044483,-460.0,0.00017701,2]
[374700190,1753419044493,-3233.96,0.00017701,2]
[374700191,1753419044503,-1176.72,0.00017701,2]
[374700192,1753419044513,-460.0,0.00017701,2]
[374700193,1753419044524,-460.0,0.00017701,2]
[374700194,1753419044534,-910.0,0.00017701,2]
[374700195,1753419044545,-1246.53,0.0001772,2]
[374700196,1753419044556,-824.42,0.0001772,2]
[374700197,1753419044566,-1706.44,0.0001772,2]
[374700198,1753419044576,-460.0,0.0001772,2]
[374700199,1753419044585,-318.47,0.0001772,2]
[374700200,1753419044595,-477.56,0.0001772,2]
[374700201,1753419044605,-580.03,0.0001772,2]
[374700202,1753419044615,-800.0,0.00017776,2]
[374700203,1753419044625,-460.0,0.000178,2]
[374700204,1753419044635,-460.0,0.000178,2]
[374700205,1753419044646,-478.9,0.000178,2]
[374700206,1753419044656,-570.91,0.000178,2]
[374700207,1753419044666,-460.0,0.000178,2]
[374700208,1753419044676,-460.0,0.000178,2]
[374700209,1753419044686,-164.37,0.000178,2]
[374700210,1753419044697,-387.39,0.000178,2]
[374700211,1753419044707,-460.0,0.000178,2]
[374700212,1753419044717,-466.05,0.000178,2]
[374700214,1753419044727,-460.0,0.000178,2]
[374700216,1753419044738,-516.79534477,0.000178,2]
[374700217,1753419044757,-563.39464806,0.000178,2]
[374700218,1753419044779,-1668.33,0.000178,2]
[374700219,1753419044798,-460.0,0.000178,2]
[374700220,1753419044816,-460.0,0.000178,2]
[374700221,1753419044826,-1140.5,0.000178,2]
[374700222,1753419044836,-520.54,0.000178,2]
[374700223,1753419044846,-460.0,0.00017807,2]
[374700224,1753419044857,-518.22,0.00017807,2]
[374700226,1753419044870,-500.0,0.00017875,2]
[374700228,1753419044881,-460.0,0.00017909,2]
[374700230,1753419044891,-5542.56428394,0.00017934,2]
[374700232,1753419044902,-492.22,0.00017966,2]
[374700234,1753419044912,-1173.27,0.00017966,2]
[374700236,1753419044923,-1256.39,0.0001797,2]
[374700238,1753419044933,-460.0,0.0001797,2]
[374700240,1753419044943,-2176.29,0.0001797,2]
[374700242,1753419044952,-1047.21,0.0001797,2]
[374700244,1753419044962,-873.75,0.0001797,2]
[374700246,1753419044972,-263.00448744,0.0001797,2]
[374700248,1753419044982,-977.93,0.0001797,2]
[374700250,1753419044992,-460.0,0.0001797,2]
[374700252,1753419045002,-460.0,0.0001797,2]
[374700254,1753419045012,-460.0,0.0001797,2]
[374700256,1753419045023,-707.89,0.00017972,2]
[374700258,1753419045033,-460.0,0.00017972,2]
[374700260,1753419045043,-460.0,0.00017973,2]
[374700262,1753419045052,-460.0,0.00017973,2]
[374700264,1753419045062,-486.46,0.00017973,2]
[374700266,1753419045072,-460.0,0.00017973,2]
[374700269,1753419045082,-460.0,0.00017973,2]
[374700271,1753419045093,-460.0,0.00017973,2]
[374700273,1753419045103,-460.0,0.00017975,2]
[374700275,1753419045112,-460.0,0.00017975,2]
[374700277,1753419045122,-460.0,0.00017975,2]
[374700279,1753419045132,-477.43,0.00017975,2]
[374700281,1753419045142,-539.26,0.00017975,2]
[374700283,1753419045152,-460.0,0.00017975,2]
[374700285,1753419045162,-3233.96,0.00017975,2]
[374700287,1753419045173,-1176.72,0.00017975,2]
[374700289,1753419045183,-460.0,0.00017975,2]
[374700291,1753419045193,-460.0,0.00017975,2]
[374700293,1753419045203,-910.0,0.00017975,2]
[374700295,1753419045212,-1246.53,0.00017994,2]
[374700297,1753419045222,-824.42,0.00017994,2]
[374700300,1753419045232,-1706.44,0.00017994,2]
[374700301,1753419045242,-460.0,0.00017994,2]
[374700304,1753419045252,-477.56,0.00017994,2]
[374700306,1753419045262,-580.03,0.00017994,2]
[374700308,1753419045274,-500.0,0.00018021,2]
[374700310,1753419045284,-460.0,0.00018074,2]
[374700312,1753419045294,-401.56420634,0.00018074,2]
[374700315,1753419045312,-374.11,0.00018074,2]
[374700317,1753419045327,-460.0,0.00018074,2]
[374700319,1753419045339,-466.05,0.00018074,2]
[374700322,1753419045350,-1668.33,0.00018074,2]
[374700324,1753419045359,-460.0,0.00018074,2]
[374700326,1753419045370,-460.0,0.00018074,2]
[374700328,1753419045381,-1140.5,0.00018074,2]
[374700330,1753419045392,-520.54,0.00018074,2]
[374700332,1753419045403,-460.0,0.00018081,2]
[374700334,1753419045413,-518.22,0.00018081,2]
[374700337,1753419045424,-401.89005437,0.00018162,2]
[374700339,1753419045434,-460.0,0.00018183,2]
[374700341,1753419045445,-561.5,0.00018239,3]
[374700343,1753419045455,-1173.27,0.0001824,2]
[374700345,1753419045466,-469.12,0.00018241,3]
[374700347,1753419045476,-1554.52,0.00018241,3]
[374700349,1753419045487,-777.26,0.00018241,3]
[374700351,1753419045497,-388.62,0.00018241,3]
[374700354,1753419045508,-1256.39,0.00018244,2]
[374700356,1753419045522,-460.0,0.00018244,2]
[374700358,1753419045532,-2176.29,0.00018244,2]
[374700360,1753419045543,-1047.21,0.00018244,2]
[374700362,1753419045553,-873.75,0.00018244,2]
[374700364,1753419045563,-977.93,0.00018244,2]
[374700366,1753419045574,-460.0,0.00018244,2]
[374700369,1753419045584,-460.0,0.00018244,2]
[374700371,1753419045595,-460.0,0.00018244,2]
[374700374,1753419045605,-707.89,0.00018246,2]
[374700376,1753419045616,-460.0,0.00018246,2]
[374700378,1753419045627,-460.0,0.00018247,2]
[374700397,1753419045790,-460.0,0.00018247,2]
[374700399,1753419045800,-486.46,0.00018247,2]
[374700401,1753419045810,-460.0,0.00018247,2]
[374700403,1753419045819,-460.0,0.00018247,2]
[374700405,1753419045829,-460.0,0.00018247,2]
[374700407,1753419045837,-460.0,0.00018249,2]
[374700409,1753419045846,-460.0,0.00018249,2]
[374700411,1753419045856,-460.0,0.00018249,2]
[374700413,1753419045866,-477.43,0.00018249,2]
[374700415,1753419045875,-539.26,0.00018249,2]
[374700417,1753419045884,-460.0,0.00018249,2]
[374700419,1753419045893,-3233.96,0.00018249,2]
[374700421,1753419045903,-1176.72,0.00018249,2]
[374700423,1753419045911,-466.22,0.00018249,2]
[374700425,1753419045921,-460.0,0.00018249,2]
[374700427,1753419045930,-910.0,0.00018249,2]
[374700429,1753419045940,-1246.53,0.00018268,2]
[374700431,1753419045949,-824.42,0.00018268,2]
[374700433,1753419045958,-1706.44,0.00018268,2]
[374700435,1753419045968,-460.0,0.00018268,2]
[374700436,1753419045976,-477.56,0.00018268,2]
[374700437,1753419045986,-580.03,0.00018268,2]
[374700438,1753419045995,-5542.56428394,0.00018279,2]
[374700439,1753419046004,-460.0,0.00018348,2]
[374700440,1753419046013,-460.0,0.00018348,2]
[374700441,1753419046024,-466.05,0.00018348,2]
[374700442,1753419046033,-1668.33,0.00018348,2]
[374700443,1753419046042,-460.0,0.00018348,2]
[374700445,1753419046051,-460.0,0.00018348,2]
[374700446,1753419046060,-1140.5,0.00018348,2]
[374700447,1753419046069,-520.54,0.00018348,2]
[374700448,1753419046079,-216.01920914,0.00018355,2]
[374700449,1753419046088,-518.22,0.00018355,2]
[374700450,1753419046097,-420.0,0.00018426,2]
[374700451,1753419046106,-420.0,0.00018426,2]
[374700453,1753419046115,-227.0,0.00018426,2]
[374700454,1753419046124,-420.0,0.00018426,2]
[374700455,1753419046133,-420.0,0.00018426,2]
[374700456,1753419046142,-1680.0,0.00018427,2]
[374700457,1753419046151,-460.0,0.00018457,2]
[374700458,1753419046160,-1173.27,0.00018514,2]
[374700459,1753419046169,-1680.0,0.00018517,2]
[374700460,1753419046178,-1256.39,0.00018518,2]
[374700461,1753419046188,-460.0,0.00018518,2]
[374700462,1753419046197,-2176.29,0.00018518,2]
[374700463,1753419046206,-1047.21,0.00018518,2]
[374700464,1753419046215,-873.75,0.00018518,2]
[374700465,1753419046225,-977.93,0.00018518,2]
[374700466,1753419046234,-460.0,0.00018518,2]
[374700467,1753419046242,-460.0,0.00018518,2]
[374700468,1753419046252,-460.0,0.00018518,2]
[374700469,1753419046262,-460.0,0.0001852,2]
[374700471,1753419046273,-707.89,0.0001852,2]
[374700473,1753419046281,-460.0,0.0001852,2]
[374700475,1753419046290,-460.0,0.00018521,2]
[374700477,1753419046300,-460.0,0.00018521,2]
[374700479,1753419046310,-486.46,0.00018521,2]
[374700481,1753419046319,-460.0,0.00018521,2]
[374700483,1753419046329,-460.0,0.00018521,2]
[374700485,1753419046338,-460.0,0.00018521,2]
[374700487,1753419046348,-460.0,0.00018523,2]
[374700489,1753419046358,-460.0,0.00018523,2]
[374700491,1753419046367,-460.0,0.00018523,2]
[374700493,1753419046377,-477.43,0.00018523,2]
[374700495,1753419046387,-539.26,0.00018523,2]
[374700497,1753419046397,-460.0,0.00018523,2]
[374700499,1753419046407,-3233.96,0.00018523,2]
[374700501,1753419046416,-1176.72,0.00018523,2]
[374700503,1753419046426,-460.0,0.00018523,2]
[374700505,1753419046437,-910.0,0.00018523,2]
[374700507,1753419046447,-1246.53,0.00018542,2]
[374700509,1753419046456,-824.42,0.00018542,2]
[374700512,1753419046466,-1706.44,0.00018542,2]
[374700514,1753419046477,-460.0,0.00018542,2]
[374700515,1753419046488,-477.56,0.00018542,2]
[374700517,1753419046499,-580.03,0.00018542,2]
[374700520,1753419046509,-460.0,0.00018622,2]
[374700522,1753419046518,-460.0,0.00018622,2]
[374700524,1753419046529,-466.05,0.00018622,2]
[374700525,1753419046538,-1668.33,0.00018622,2]
[374700527,1753419046548,-460.0,0.00018622,2]
[374700530,1753419046557,-460.0,0.00018622,2]
[374700532,1753419046566,-1140.5,0.00018622,2]
[374700534,1753419046575,-520.54,0.00018622,2]
[374700535,1753419046584,-5542.56428394,0.00018624,2]
[374700537,1753419046594,-508.0,0.00018627,2]
[374700540,1753419046603,-151.0,0.00018627,2]
[374700542,1753419046613,-500.0,0.00018627,2]
[374700543,1753419046621,-151.0,0.00018627,2]
[374700546,1753419046632,-151.0,0.00018627,2]
[374700548,1753419046642,-151.0,0.00018627,2]
[374700550,1753419046651,-151.0,0.00018627,2]
[374700552,1753419046660,-151.0,0.00018627,2]
[374700554,1753419046669,-151.0,0.00018627,2]
[374700556,1753419046679,-151.0,0.00018627,2]
[374700558,1753419046689,-151.0,0.00018627,2]
[374700560,1753419046699,-151.0,0.00018627,2]
[374700562,1753419046708,-249.59601864,0.00018627,2]
[374700564,1753419046717,-201.7199678,0.00018627,2]
[374700566,1753419046726,-151.0,0.00018627,2]
[374700568,1753419046736,-637.0,0.00018627,2]
[374700570,1753419046746,-151.0,0.00018627,2]
[374700572,1753419046759,-518.22,0.00018629,2]
[374700574,1753419046768,-460.0,0.00018731,2]
[374700576,1753419046779,-451.38273992,0.00018761,2]
[374700578,1753419046789,-500.0,0.00018761,2]
[374700580,1753419046797,-500.0,0.00018761,2]
[374700582,1753419046806,-500.0,0.00018761,2]
[374700584,1753419046816,-500.0,0.00018761,2]
[374700586,1753419046825,-374.84362265,0.00018761,2]
[374700588,1753419046836,-500.0,0.00018761,2]
[374700590,1753419046845,-158.73385463,0.00018761,2]
[374700592,1753419046854,-500.0,0.00018761,2]
[374700594,1753419046863,-500.0,0.00018761,2]
[374700596,1753419046873,-500.0,0.00018761,2]
[374700598,1753419046882,-371.92015396,0.00018761,2]
[374700600,1753419046891,-501.68596709,0.00018761,2]
[374700602,1753419046901,-501.11318172,0.00018761,2]
[374700604,1753419046910,-500.0,0.00018761,2]
[374700606,1753419046919,-500.0,0.00018761,2]
[374700608,1753419046929,-500.0,0.00018761,2]
[374700610,1753419046938,-501.5053055,0.00018761,2]
[374700612,1753419046947,-500.86453383,0.00018761,2]
[374700614,1753419046958,-509.79784909,0.00018761,2]
[374700616,1753419046967,-500.82028526,0.00018761,2]
[374700618,1753419046976,-500.0,0.00018761,2]
[374700620,1753419046985,-500.76491467,0.00018761,2]
[374700622,1753419046995,-500.0,0.00018761,2]
[374700624,1753419047004,-500.43209641,0.00018761,2]
[374700626,1753419047013,-500.0,0.00018761,2]
[374700628,1753419047024,-1173.27,0.00018788,2]
[374700630,1753419047033,-1256.39,0.00018792,2]
[374700632,1753419047043,-465.42008594,0.00018792,2]
[374700634,1753419047052,-2176.29,0.00018792,2]
[374700636,1753419047062,-1047.21,0.00018792,2]
[374700638,1753419047071,-873.75,0.00018792,2]
[374700640,1753419047080,-977.93,0.00018792,2]
[374700642,1753419047090,-460.0,0.00018792,2]
[374700644,1753419047100,-460.0,0.00018792,2]
[374700646,1753419047109,-166.25,0.00018792,2]
[374700648,1753419047119,-422.13233142,0.00018794,2]
[374700650,1753419047128,-707.89,0.00018794,2]
[374700652,1753419047138,-460.0,0.00018794,2]
[374700654,1753419047147,-460.0,0.00018795,2]
[374700656,1753419047156,-460.0,0.00018795,2]
[374700658,1753419047165,-486.46,0.00018795,2]
[374700660,1753419047175,-460.0,0.00018795,2]
[374700662,1753419047184,-460.0,0.00018795,2]
[374700663,1753419047193,-460.0,0.00018795,2]
[374700664,1753419047202,-460.0,0.00018797,2]
[374700665,1753419047212,-460.0,0.00018797,2]
[374700666,1753419047221,-460.0,0.00018797,2]
[374700667,1753419047231,-477.43,0.00018797,2]
[374700668,1753419047241,-539.26,0.00018797,2]
[374700669,1753419047250,-460.0,0.00018797,2]
[374700670,1753419047259,-3233.96,0.00018797,2]
[374700671,1753419047269,-1176.72,0.00018797,2]
[374700672,1753419047283,-460.0,0.00018797,2]
[374700673,1753419047295,-910.0,0.00018797,2]
[374700674,1753419047304,-1246.53,0.00018816,2]
[374700675,1753419047314,-824.42,0.00018816,2]
[374700676,1753419047323,-1706.44,0.00018816,2]
[374700677,1753419047332,-460.0,0.00018816,2]
[374700678,1753419047342,-477.56,0.00018816,2]
[374700679,1753419047351,-580.03,0.00018816,2]
[374700680,1753419047360,-500.0,0.00018816,2]
[374700681,1753419047369,-160.0,0.00018843,2]
[374700682,1753419047379,-800.0,0.00018872,2]
[374700683,1753419047389,-460.0,0.00018896,2]
[374700684,1753419047398,-460.0,0.00018896,2]
[374700685,1753419047408,-466.05,0.00018896,2]
[374700686,1753419047417,-1668.33,0.00018896,2]
[374700687,1753419047427,-460.0,0.00018896,2]
[374700688,1753419047442,-460.0,0.00018896,2]
[374700689,1753419047451,-1140.5,0.00018896,2]
[374700690,1753419047461,-520.54,0.00018896,2]
[374700691,1753419047470,-5572.70999887,0.000189,2]
[374700692,1753419047479,-508.0,0.00018901,2]
[374700693,1753419047488,-500.0,0.00018901,2]
[374700694,1753419047498,-151.0,0.00018901,2]
[374700695,1753419047507,-151.0,0.00018901,2]
[374700696,1753419047516,-151.0,0.00018901,2]
[374700697,1753419047527,-154.09278747,0.00018901,2]
[374700698,1753419047537,-151.0,0.00018901,2]
[374700699,1753419047546,-151.0,0.00018901,2]
[374700700,1753419047556,-151.0,0.00018901,2]
[374700701,1753419047565,-151.0,0.00018901,2]
[374700702,1753419047574,-637.0,0.00018901,2]
[374700703,1753419047583,-518.22,0.00018903,2]
[374700704,1753419047593,-5542.56428394,0.00018969,2]
[374700705,1753419047602,-460.0,0.00019004,2]
[374700706,1753419047611,-460.0,0.00019004,2]
[374700707,1753419047621,-460.0,0.00019004,2]
[374700708,1753419047630,-460.0,0.00019004,2]
[374700709,1753419047639,-460.0,0.00019004,2]
[374700710,1753419047649,-464.43757015,0.00019004,2]
[374700711,1753419047658,-460.0,0.00019004,2]
[374700712,1753419047668,-460.0,0.00019004,2]
[374700713,1753419047677,-461.92955597,0.00019004,2]
[374700714,1753419047687,-286.48979458,0.00019004,2]
[374700715,1753419047696,-424.0,0.00019004,2]
[374700716,1753419047706,-460.0,0.00019004,2]
[374700717,1753419047715,-460.0,0.00019004,2]
[374700718,1753419047725,-460.0,0.00019004,2]
[374700719,1753419047734,-460.0,0.00019004,2]
[374700720,1753419047744,-460.0,0.00019004,2]
[374700721,1753419047758,-460.0,0.00019004,2]
[374700722,1753419047767,-500.0,0.00019004,2]
[374700723,1753419047778,-460.0,0.00019004,2]
[374700724,1753419047788,-460.0,0.00019004,2]
[374700725,1753419047797,-460.0,0.00019004,2]
[374700726,1753419047807,-460.0,0.00019004,2]
[374700727,1753419047817,-460.0,0.00019004,2]
[374700728,1753419047828,-460.0,0.00019004,2]
[374700729,1753419047839,-460.0,0.00019004,2]
[374700730,1753419047849,-460.0,0.00019004,2]
[374700731,1753419047858,-460.0,0.00019004,2]
[374700732,1753419047868,-460.0,0.00019004,2]
[374700733,1753419047877,-460.0,0.00019004,2]
[374700734,1753419047887,-460.0,0.00019004,2]
[374700735,1753419047896,-460.0,0.00019004,2]
[374700736,1753419047905,-460.0,0.00019004,2]
[374700737,1753419047915,-460.0,0.00019004,2]
[374700738,1753419047924,-460.0,0.00019004,2]
[374700739,1753419047934,-460.0,0.00019005,2]
[374700740,1753419047944,-1173.27,0.00019062,2]
[374700741,1753419047953,-1256.39,0.00019066,2]
[374700742,1753419047963,-2176.29,0.00019066,2]
[374700743,1753419047972,-1047.21,0.00019066,2]
[374700744,1753419047981,-873.75,0.00019066,2]
[374700745,1753419047991,-977.93,0.00019066,2]
[374700746,1753419048000,-355.42,0.00019066,2]
[374700747,1753419048010,-460.0,0.00019066,2]
[374700748,1753419048020,-707.89,0.00019068,2]
[374700749,1753419048032,-460.0,0.00019068,2]
[374700750,1753419048041,-460.0,0.00019069,2]
[374700751,1753419048051,-460.0,0.00019069,2]
[374700752,1753419048060,-486.46,0.00019069,2]
[374700753,1753419048070,-460.0,0.00019069,2]
[374700754,1753419048080,-460.0,0.00019069,2]
[374700755,1753419048090,-460.0,0.00019069,2]
[374700756,1753419048099,-460.0,0.00019071,2]
[374700757,1753419048108,-460.0,0.00019071,2]
[374700758,1753419048118,-246.99,0.00019071,2]
[374700759,1753419048127,-477.43,0.00019071,2]
[374700760,1753419048137,-539.26,0.00019071,2]
[374700761,1753419048147,-460.0,0.00019071,2]
[374700762,1753419048156,-3233.96,0.00019071,2]
[374700763,1753419048165,-1176.72,0.00019071,2]